[Event "Early-Titled-Tuesday-Blitz-October-24-2023"]
[Site "Chess.com"]
[Date "2023.10.24"]
[Round "5"]
[White "Korchmar_Vasiliy"]
[Black "sjoerd893"]
[Result "1-0"]
[WhiteElo "2771"]
[BlackElo "2528"]
[TimeControl "180+1"]
[EndTime "8:51:47 PDT"]
[Termination "Korchmar_Vasiliy won by resignation"]

1. e4 {[%clk 0:03:00.9]} 1... c5 {[%clk 0:02:58.4]} 2. d4 {[%clk 0:03:00.7]}
2... cxd4 {[%clk 0:02:58.5]} 3. Qxd4 {[%clk 0:03:01.6]} 3... Nc6 {[%clk
0:02:58.4]} 4. Qd3 {[%clk 0:03:02.3]} 4... g6 {[%clk 0:02:57.1]} 5. Nc3 {[%clk
0:03:02.5]} 5... Bg7 {[%clk 0:02:56.9]} 6. Nf3 {[%clk 0:03:03.2]} 6... Nf6
{[%clk 0:02:56.3]} 7. Be2 {[%clk 0:03:03.8]} 7... O-O {[%clk 0:02:55.8]} 8. O-O
{[%clk 0:03:04.5]} 8... d6 {[%clk 0:02:55.1]} 9. Nd5 {[%clk 0:03:05.2]} 9... Bg4
{[%clk 0:02:50.8]} 10. c3 {[%clk 0:03:04.9]} 10... Rc8 {[%clk 0:02:41.3]} 11.
Bg5 {[%clk 0:03:03.9]} 11... Nxd5 {[%clk 0:02:38.2]} 12. exd5 {[%clk 0:03:04.8]}
12... Bxf3 {[%clk 0:02:34.5]} 13. Qxf3 {[%clk 0:03:05.7]} 13... Ne5 {[%clk
0:02:34]} 14. Qe3 {[%clk 0:03:06]} 14... h6 {[%clk 0:02:31.4]} 15. Bxh6 {[%clk
0:03:05]} 15... Bxh6 {[%clk 0:02:01.9]} 16. Qxh6 {[%clk 0:03:05.9]} 16... Rc5
{[%clk 0:02:01.5]} 17. Rad1 {[%clk 0:03:05.1]} 17... Qb6 {[%clk 0:01:28.5]} 18.
Rd4 {[%clk 0:03:05.2]} 18... f6 {[%clk 0:01:26.3]} 19. f4 {[%clk 0:02:54.7]}
19... Rxd5 {[%clk 0:01:00]} 20. fxe5 {[%clk 0:02:53.6]} 20... Rxd4 {[%clk
0:01:00]} 21. Qxg6+ {[%clk 0:02:54.1]} 21... Kh8 {[%clk 0:00:59.4]} 22. Qh6+
{[%clk 0:02:53.5]} 22... Kg8 {[%clk 0:00:59.3]} 23. Qg6+ {[%clk 0:02:54.1]}
23... Kh8 {[%clk 0:00:59.3]} 24. cxd4 {[%clk 0:02:54.8]} 24... Qxd4+ {[%clk
0:00:55.1]} 25. Kh1 {[%clk 0:02:55.2]} 25... Qxe5 {[%clk 0:00:43]} 26. Rf5
{[%clk 0:02:55.4]} 26... Qxe2 {[%clk 0:00:39.3]} 27. Rh5+ {[%clk 0:02:55.7]}
27... Qxh5 {[%clk 0:00:39.4]} 28. Qxh5+ {[%clk 0:02:56.6]} 28... Kg7 {[%clk
0:00:40]} 29. Qg4+ {[%clk 0:02:57]} 29... Kf7 {[%clk 0:00:39.7]} 30. Qc4+ {[%clk
0:02:57.2]} 30... Kg7 {[%clk 0:00:38.1]} 31. Qc7 {[%clk 0:02:58.1]} 31... Rf7
{[%clk 0:00:37.2]} 32. Qxb7 {[%clk 0:02:58.4]} 32... e5 {[%clk 0:00:37.9]} 33.
Qd5 {[%clk 0:02:58.6]} 33... Rd7 {[%clk 0:00:35]} 34. g4 {[%clk 0:02:59.1]}
34... Kf8 {[%clk 0:00:33.5]} 35. h4 {[%clk 0:02:59.3]} 35... Ke7 {[%clk
0:00:32.7]} 36. h5 {[%clk 0:02:59.7]} 36... Rc7 {[%clk 0:00:32.3]} 37. h6 {[%clk
0:02:58]} 1-0

[Event "Early-Titled-Tuesday-Blitz-October-24-2023"]
[Site "Chess.com"]
[Date "2023.10.24"]
[Round "5"]
[White "OparinGrigoriy"]
[Black "carokannlover213"]
[Result "1-0"]
[WhiteElo "2990"]
[BlackElo "2746"]
[TimeControl "180+1"]
[EndTime "8:51:54 PDT"]
[Termination "OparinGrigoriy won by checkmate"]

1. c4 {[%clk 0:03:00.9]} 1... e5 {[%clk 0:02:57.8]} 2. Nc3 {[%clk 0:03:00.7]}
2... Nf6 {[%clk 0:02:57.7]} 3. Nf3 {[%clk 0:03:01.4]} 3... Nc6 {[%clk
0:02:57.6]} 4. g3 {[%clk 0:03:01.9]} 4... d5 {[%clk 0:02:55.8]} 5. cxd5 {[%clk
0:03:01.9]} 5... Nxd5 {[%clk 0:02:56.7]} 6. Bg2 {[%clk 0:03:02.5]} 6... Bc5
{[%clk 0:02:56.6]} 7. O-O {[%clk 0:03:01.3]} 7... O-O {[%clk 0:02:57.2]} 8. d3
{[%clk 0:03:01.4]} 8... Nb6 {[%clk 0:02:23.9]} 9. a3 {[%clk 0:02:58.9]} 9... a5
{[%clk 0:02:22.9]} 10. Bd2 {[%clk 0:02:57.1]} 10... Be6 {[%clk 0:02:18]} 11. Rc1
{[%clk 0:02:55.1]} 11... Be7 {[%clk 0:02:17.5]} 12. Ne4 {[%clk 0:02:53.4]} 12...
f6 {[%clk 0:02:10.5]} 13. Nc5 {[%clk 0:02:49.6]} 13... Bxc5 {[%clk 0:02:07.2]}
14. Rxc5 {[%clk 0:02:50.5]} 14... Bd5 {[%clk 0:02:07.7]} 15. Be3 {[%clk
0:02:45.6]} 15... Kh8 {[%clk 0:02:05]} 16. Qc2 {[%clk 0:02:32.7]} 16... a4
{[%clk 0:01:56.1]} 17. Rc1 {[%clk 0:02:32.5]} 17... Bb3 {[%clk 0:01:52.4]} 18.
Qd2 {[%clk 0:02:27.2]} 18... Nd5 {[%clk 0:01:51.4]} 19. Nh4 {[%clk 0:02:22.5]}
19... Rc8 {[%clk 0:01:39.4]} 20. Rb5 {[%clk 0:02:14.5]} 20... Nxe3 {[%clk
0:01:23.9]} 21. Qxe3 {[%clk 0:02:15.4]} 21... Nd4 {[%clk 0:01:24.5]} 22. Rxb7
{[%clk 0:02:12.8]} 22... Bd5 {[%clk 0:01:22]} 23. Ra7 {[%clk 0:02:02.5]} 23...
Bxg2 {[%clk 0:01:20.1]} 24. Kxg2 {[%clk 0:02:03.4]} 24... Rb8 {[%clk 0:01:16.9]}
25. Rcxc7 {[%clk 0:02:00.8]} 25... Rg8 {[%clk 0:01:09.8]} 26. Ng6+ {[%clk
0:02:00.6]} 26... hxg6 {[%clk 0:00:56.4]} 27. Qh6+ {[%clk 0:02:01.5]} 27... gxh6
{[%clk 0:00:56.3]} 28. Rh7# {[%clk 0:02:02.4]} 1-0

[Event "Early-Titled-Tuesday-Blitz-October-24-2023"]
[Site "Chess.com"]
[Date "2023.10.24"]
[Round "5"]
[White "Chernov_Mikhail"]
[Black "THE_PLAYER6"]
[Result "0-1"]
[WhiteElo "2394"]
[BlackElo "2566"]
[TimeControl "180+1"]
[EndTime "8:52:14 PDT"]
[Termination "THE_PLAYER6 won by resignation"]

1. d4 {[%clk 0:02:50.1]} 1... Nf6 {[%clk 0:02:58.9]} 2. Nc3 {[%clk 0:02:50.2]}
2... d5 {[%clk 0:02:57.7]} 3. Bf4 {[%clk 0:02:50.4]} 3... a6 {[%clk 0:02:54.9]}
4. e3 {[%clk 0:02:50.4]} 4... c5 {[%clk 0:02:54.9]} 5. Nf3 {[%clk 0:02:46.4]}
5... Nc6 {[%clk 0:02:54.6]} 6. dxc5 {[%clk 0:02:28.3]} 6... e6 {[%clk
0:02:49.9]} 7. Bd3 {[%clk 0:02:03.2]} 7... Bxc5 {[%clk 0:02:46.5]} 8. O-O {[%clk
0:02:03]} 8... b5 {[%clk 0:02:43.1]} 9. e4 {[%clk 0:02:01.5]} 9... dxe4 {[%clk
0:02:42.7]} 10. Nxe4 {[%clk 0:02:02.4]} 10... Nxe4 {[%clk 0:02:42.5]} 11. Bxe4
{[%clk 0:02:03.3]} 11... Bb7 {[%clk 0:02:42.2]} 12. Qe2 {[%clk 0:01:56.6]} 12...
Qe7 {[%clk 0:02:40.4]} 13. Rad1 {[%clk 0:01:47.3]} 13... h6 {[%clk 0:02:36.1]}
14. c3 {[%clk 0:01:42.6]} 14... O-O {[%clk 0:02:34.5]} 15. Rfe1 {[%clk
0:01:41.8]} 15... Rad8 {[%clk 0:02:32]} 16. Bc2 {[%clk 0:01:38.6]} 16... Rxd1
{[%clk 0:02:26.7]} 17. Rxd1 {[%clk 0:01:39.5]} 17... Rd8 {[%clk 0:02:23.7]} 18.
Rxd8+ {[%clk 0:01:38.1]} 18... Nxd8 {[%clk 0:02:21.9]} 19. Qd3 {[%clk
0:01:27.8]} 19... f5 {[%clk 0:02:16.1]} 20. Ne5 {[%clk 0:01:14.9]} 20... g5
{[%clk 0:02:07.8]} 21. Ng6 {[%clk 0:00:56.2]} 21... Qe8 {[%clk 0:02:00.3]} 22.
Bd6 {[%clk 0:00:53.4]} 22... Be4 {[%clk 0:01:54.7]} 0-1

[Event "Early-Titled-Tuesday-Blitz-October-24-2023"]
[Site "Chess.com"]
[Date "2023.10.24"]
[Round "5"]
[White "IriBu"]
[Black "Tssunami"]
[Result "1-0"]
[WhiteElo "2583"]
[BlackElo "2422"]
[TimeControl "180+1"]
[EndTime "8:52:17 PDT"]
[Termination "IriBu won by resignation"]

1. e4 {[%clk 0:03:00.9]} 1... c6 {[%clk 0:02:59.4]} 2. d3 {[%clk 0:03:00.1]}
2... d5 {[%clk 0:02:59.9]} 3. Nd2 {[%clk 0:03:00.4]} 3... Qc7 {[%clk 0:03:00.3]}
4. Ngf3 {[%clk 0:03:00.3]} 4... e5 {[%clk 0:02:59.8]} 5. g3 {[%clk 0:02:54.6]}
5... g6 {[%clk 0:02:59.2]} 6. Bg2 {[%clk 0:02:54.9]} 6... Bg7 {[%clk 0:02:59.6]}
7. O-O {[%clk 0:02:54.9]} 7... Ne7 {[%clk 0:03:00.1]} 8. Re1 {[%clk 0:02:53.7]}
8... d4 {[%clk 0:03:00.1]} 9. a4 {[%clk 0:02:52.5]} 9... O-O {[%clk 0:03:00.1]}
10. Nc4 {[%clk 0:02:52.1]} 10... Be6 {[%clk 0:02:58.6]} 11. b3 {[%clk
0:02:51.3]} 11... h6 {[%clk 0:02:57.6]} 12. Ba3 {[%clk 0:02:48.4]} 12... Rd8
{[%clk 0:02:55.4]} 13. Bxe7 {[%clk 0:02:47.5]} 13... Qxe7 {[%clk 0:02:54.5]} 14.
Ncxe5 {[%clk 0:02:47.6]} 14... Bxb3 {[%clk 0:02:39.9]} 15. Nxg6 {[%clk
0:02:45.1]} 15... fxg6 {[%clk 0:02:40.1]} 16. cxb3 {[%clk 0:02:45]} 16... Na6
{[%clk 0:02:38.7]} 17. Qc2 {[%clk 0:02:42.8]} 17... Kh7 {[%clk 0:02:30.6]} 18.
e5 {[%clk 0:02:40.6]} 18... Nb4 {[%clk 0:02:29.2]} 19. Qd2 {[%clk 0:02:40.6]}
19... a5 {[%clk 0:02:26.5]} 20. Nh4 {[%clk 0:02:39.3]} 20... Qg5 {[%clk
0:01:55.2]} 21. f4 {[%clk 0:02:37]} 21... Qg4 {[%clk 0:01:46.8]} 22. Be4 {[%clk
0:02:35.8]} 22... Kg8 {[%clk 0:01:44.9]} 23. Bxg6 {[%clk 0:02:30.5]} 23... Nd5
{[%clk 0:01:42.1]} 24. Bf5 {[%clk 0:02:29.8]} 24... Qh5 {[%clk 0:01:42.1]} 25.
Be6+ {[%clk 0:02:27.5]} 25... Kh8 {[%clk 0:01:40.6]} 26. Bxd5 {[%clk 0:02:27.5]}
26... cxd5 {[%clk 0:01:39.6]} 27. Rac1 {[%clk 0:02:25]} 27... Rdc8 {[%clk
0:01:39.8]} 28. f5 {[%clk 0:02:17.3]} 28... Qg4 {[%clk 0:01:20.3]} 29. f6 {[%clk
0:02:09.9]} 29... Bf8 {[%clk 0:01:19.7]} 30. e6 {[%clk 0:02:09.2]} 30... Rxc1
{[%clk 0:01:18.9]} 31. Qxc1 {[%clk 0:02:09.4]} 31... Kh7 {[%clk 0:01:16.6]} 32.
e7 {[%clk 0:02:08.7]} 32... Bxe7 {[%clk 0:01:16.3]} 33. fxe7 {[%clk 0:02:07.9]}
33... Re8 {[%clk 0:01:16.2]} 34. Qf4 {[%clk 0:02:06.7]} 34... Qg7 {[%clk
0:01:09.9]} 35. Qf5+ {[%clk 0:02:03.8]} 35... Kg8 {[%clk 0:01:09.9]} 36. Qg6
{[%clk 0:02:02.5]} 36... Rxe7 {[%clk 0:01:09.6]} 37. Rxe7 {[%clk 0:02:00.7]} 1-0

[Event "Early-Titled-Tuesday-Blitz-October-24-2023"]
[Site "Chess.com"]
[Date "2023.10.24"]
[Round "5"]
[White "ferrufino64"]
[Black "AsaHoffmann"]
[Result "0-1"]
[WhiteElo "2202"]
[BlackElo "2388"]
[TimeControl "180+1"]
[EndTime "8:52:20 PDT"]
[Termination "AsaHoffmann won by resignation"]

1. e4 {[%clk 0:02:52.1]} 1... d6 {[%clk 0:02:50.8]} 2. d4 {[%clk 0:02:47.7]}
2... Nf6 {[%clk 0:02:47.9]} 3. Nc3 {[%clk 0:02:42.6]} 3... c6 {[%clk 0:02:47.8]}
4. a4 {[%clk 0:02:41.9]} 4... Qa5 {[%clk 0:02:46.8]} 5. Bd3 {[%clk 0:02:39.5]}
5... e5 {[%clk 0:02:42.4]} 6. Ne2 {[%clk 0:02:39.3]} 6... Be7 {[%clk 0:02:39.8]}
7. O-O {[%clk 0:02:38.7]} 7... O-O {[%clk 0:02:39.7]} 8. Bg5 {[%clk 0:02:35.1]}
8... Nbd7 {[%clk 0:02:37.7]} 9. Rb1 {[%clk 0:02:15.5]} 9... exd4 {[%clk
0:02:36.9]} 10. Bxf6 {[%clk 0:02:07.1]} 10... Bxf6 {[%clk 0:02:36.2]} 11. b4
{[%clk 0:02:06]} 11... Qc7 {[%clk 0:02:29.8]} 12. Na2 {[%clk 0:02:05.5]} 12...
a5 {[%clk 0:02:29.4]} 13. b5 {[%clk 0:02:04.8]} 13... c5 {[%clk 0:02:28]} 14. c4
{[%clk 0:02:01.8]} 14... Nb6 {[%clk 0:02:22.8]} 15. f4 {[%clk 0:01:59.4]} 15...
Re8 {[%clk 0:02:19.8]} 16. Qc2 {[%clk 0:01:59.4]} 16... g6 {[%clk 0:02:04.5]}
17. Rbe1 {[%clk 0:01:58.7]} 17... Nd7 {[%clk 0:01:52.8]} 18. Nac1 {[%clk
0:01:57.6]} 18... b6 {[%clk 0:01:52.4]} 19. f5 {[%clk 0:01:31.6]} 19... Kg7
{[%clk 0:01:50.3]} 20. fxg6 {[%clk 0:01:31.3]} 20... hxg6 {[%clk 0:01:49.9]} 21.
Nf4 {[%clk 0:01:31.6]} 21... Bb7 {[%clk 0:01:48.8]} 22. Rf2 {[%clk 0:01:27.7]}
22... Ne5 {[%clk 0:01:47.3]} 23. Ref1 {[%clk 0:01:27.4]} 23... Bg5 {[%clk
0:01:45.1]} 24. Nce2 {[%clk 0:01:22.5]} 24... Re7 {[%clk 0:01:44]} 25. Nd5
{[%clk 0:01:16.3]} 25... Bxd5 {[%clk 0:01:43.3]} 26. exd5 {[%clk 0:01:16.6]}
26... Be3 {[%clk 0:01:41.9]} 27. Kh1 {[%clk 0:01:15.5]} 27... Bxf2 {[%clk
0:01:40.9]} 28. Rxf2 {[%clk 0:01:16.4]} 28... Rae8 {[%clk 0:01:40.2]} 29. Ng3
{[%clk 0:01:15.7]} 29... Nxd3 {[%clk 0:01:34.9]} 30. Qxd3 {[%clk 0:01:16.6]}
30... Re3 {[%clk 0:01:33.7]} 31. Qd2 {[%clk 0:01:14.5]} 31... Qe7 {[%clk
0:01:33.4]} 32. Nf1 {[%clk 0:01:12.3]} 32... Re2 {[%clk 0:01:31.4]} 33. Qf4
{[%clk 0:01:12.3]} 0-1

[Event "Early-Titled-Tuesday-Blitz-October-24-2023"]
[Site "Chess.com"]
[Date "2023.10.24"]
[Round "5"]
[White "KVAIDAN"]
[Black "WFM_Sara_Adel"]
[Result "1-0"]
[WhiteElo "2376"]
[BlackElo "2176"]
[TimeControl "180+1"]
[EndTime "8:52:21 PDT"]
[Termination "KVAIDAN won by resignation"]

1. f4 {[%clk 0:03:00.9]} 1... Nf6 {[%clk 0:02:59.3]} 2. Nf3 {[%clk 0:03:00.7]}
2... d6 {[%clk 0:02:58.7]} 3. d3 {[%clk 0:03:01.1]} 3... Nc6 {[%clk 0:02:59.4]}
4. e4 {[%clk 0:03:01.5]} 4... g6 {[%clk 0:02:57]} 5. Be2 {[%clk 0:03:01.8]} 5...
Bg7 {[%clk 0:02:57.7]} 6. O-O {[%clk 0:03:02.4]} 6... O-O {[%clk 0:02:58.6]} 7.
Nc3 {[%clk 0:03:01.1]} 7... e5 {[%clk 0:02:59.5]} 8. Qe1 {[%clk 0:03:01.2]} 8...
exf4 {[%clk 0:02:59.5]} 9. Bxf4 {[%clk 0:03:00.8]} 9... Nh5 {[%clk 0:02:59.6]}
10. Be3 {[%clk 0:03:00.5]} 10... f5 {[%clk 0:02:57.1]} 11. Rd1 {[%clk
0:02:45.8]} 11... f4 {[%clk 0:02:50.5]} 12. Bc1 {[%clk 0:02:41.8]} 12... g5
{[%clk 0:02:50.7]} 13. Nd2 {[%clk 0:02:22.9]} 13... Bd4+ {[%clk 0:02:46.7]} 14.
Kh1 {[%clk 0:02:17.4]} 14... Ng3+ {[%clk 0:02:30]} 15. hxg3 {[%clk 0:02:16.9]}
15... Qf6 {[%clk 0:02:22.7]} 16. Nf3 {[%clk 0:01:46.7]} 16... Qh6+ {[%clk
0:02:21.1]} 17. Nh2 {[%clk 0:01:43.5]} 17... fxg3 {[%clk 0:02:19.6]} 18. Qxg3
{[%clk 0:01:43.3]} 18... Rxf1+ {[%clk 0:02:17]} 19. Rxf1 {[%clk 0:01:42.6]}
19... Be5 {[%clk 0:02:17.9]} 20. Qxg5+ {[%clk 0:01:42]} 20... Qxg5 {[%clk
0:02:16.5]} 21. Bxg5 {[%clk 0:01:41.1]} 21... Nd4 {[%clk 0:02:17]} 22. Bd1
{[%clk 0:01:37]} 22... Be6 {[%clk 0:02:10.2]} 23. Nd5 {[%clk 0:01:34.9]} 23...
Nb5 {[%clk 0:02:04]} 24. c3 {[%clk 0:01:29.8]} 24... c6 {[%clk 0:02:03.5]} 25.
Nf6+ {[%clk 0:01:25.9]} 25... Kg7 {[%clk 0:01:59.5]} 26. Nfg4 {[%clk 0:01:25.7]}
26... Bxh2 {[%clk 0:01:47.9]} 27. Kxh2 {[%clk 0:01:25.4]} 27... h5 {[%clk
0:01:40.7]} 28. Ne3 {[%clk 0:01:18.6]} 28... Bxa2 {[%clk 0:01:26.2]} 29. Bxh5
{[%clk 0:01:17.7]} 29... Rh8 {[%clk 0:01:25.3]} 30. Bf6+ {[%clk 0:01:16.8]} 1-0

[Event "Early-Titled-Tuesday-Blitz-October-24-2023"]
[Site "Chess.com"]
[Date "2023.10.24"]
[Round "5"]
[White "LastHeroJr"]
[Black "PinaSoprano"]
[Result "0-1"]
[WhiteElo "2447"]
[BlackElo "2214"]
[TimeControl "180+1"]
[EndTime "8:52:24 PDT"]
[Termination "PinaSoprano won by resignation"]

1. e4 {[%clk 0:03:00.9]} 1... c5 {[%clk 0:02:59.9]} 2. Nc3 {[%clk 0:03:00.3]}
2... Nc6 {[%clk 0:02:56.9]} 3. g3 {[%clk 0:03:01.2]} 3... g6 {[%clk 0:02:56.2]}
4. Bg2 {[%clk 0:03:01.8]} 4... Bg7 {[%clk 0:02:56.8]} 5. d3 {[%clk 0:03:02.3]}
5... e6 {[%clk 0:02:57.1]} 6. f4 {[%clk 0:03:02.5]} 6... Nge7 {[%clk 0:02:57.5]}
7. Nf3 {[%clk 0:03:02.9]} 7... O-O {[%clk 0:02:58.1]} 8. O-O {[%clk 0:03:02.9]}
8... b6 {[%clk 0:02:52.2]} 9. Rb1 {[%clk 0:03:02.5]} 9... Bb7 {[%clk 0:02:51.7]}
10. e5 {[%clk 0:03:02.3]} 10... d5 {[%clk 0:02:45]} 11. Nb5 {[%clk 0:03:02]}
11... Nf5 {[%clk 0:02:41.7]} 12. g4 {[%clk 0:02:59.5]} 12... a6 {[%clk
0:02:32.9]} 13. gxf5 {[%clk 0:02:56.8]} 13... axb5 {[%clk 0:02:32.6]} 14. f6
{[%clk 0:02:57.3]} 14... Bh8 {[%clk 0:02:31.3]} 15. c3 {[%clk 0:02:57.2]} 15...
b4 {[%clk 0:02:25.5]} 16. Be3 {[%clk 0:02:54.7]} 16... Rxa2 {[%clk 0:02:22.3]}
17. Qe1 {[%clk 0:02:48.2]} 17... d4 {[%clk 0:02:15.4]} 18. cxd4 {[%clk
0:02:46.6]} 18... Nxd4 {[%clk 0:02:12]} 19. Bxd4 {[%clk 0:02:46.8]} 19... Bxf3
{[%clk 0:02:07.9]} 20. Rxf3 {[%clk 0:02:43.2]} 20... Qxd4+ {[%clk 0:02:07.5]}
21. Kh1 {[%clk 0:02:43.4]} 21... Rxb2 {[%clk 0:02:01.3]} 22. Rd1 {[%clk
0:02:43.2]} 22... Ra8 {[%clk 0:01:48]} 23. Qh4 {[%clk 0:02:38.2]} 23... Raa2
{[%clk 0:01:36.6]} 24. Rh3 {[%clk 0:02:37.6]} 24... h5 {[%clk 0:01:34.6]} 25.
Rg3 {[%clk 0:02:38]} 25... Rd2 {[%clk 0:01:23.5]} 26. Rg1 {[%clk 0:02:36.9]}
26... Ra1 {[%clk 0:01:17.9]} 27. Be4 {[%clk 0:02:30.8]} 27... Rdd1 {[%clk
0:01:10.1]} 28. Rxd1 {[%clk 0:02:22.7]} 28... Rxd1+ {[%clk 0:01:09.3]} 29. Kg2
{[%clk 0:02:23.2]} 29... Qg1+ {[%clk 0:00:54.8]} 30. Kh3 {[%clk 0:02:23.4]}
30... Qf1+ {[%clk 0:00:52.1]} 31. Bg2 {[%clk 0:02:23.2]} 31... Qe2 {[%clk
0:00:49.3]} 32. Be4 {[%clk 0:02:17.9]} 32... Kh7 {[%clk 0:00:45.1]} 33. Qxh5+
{[%clk 0:02:17]} 33... Qxh5+ {[%clk 0:00:44.1]} 0-1

[Event "Early-Titled-Tuesday-Blitz-October-24-2023"]
[Site "Chess.com"]
[Date "2023.10.24"]
[Round "5"]
[White "santosalberto1987"]
[Black "deribas12345"]
[Result "0-1"]
[WhiteElo "2408"]
[BlackElo "2569"]
[TimeControl "180+1"]
[EndTime "8:52:29 PDT"]
[Termination "deribas12345 won by resignation"]

1. e4 {[%clk 0:03:00.9]} 1... c5 {[%clk 0:02:59.2]} 2. Nf3 {[%clk 0:03:00.9]}
2... d6 {[%clk 0:02:58.9]} 3. Bb5+ {[%clk 0:03:00.4]} 3... Bd7 {[%clk
0:02:51.2]} 4. Bxd7+ {[%clk 0:03:00.2]} 4... Qxd7 {[%clk 0:02:52.1]} 5. c4
{[%clk 0:03:00.6]} 5... Nc6 {[%clk 0:02:38.3]} 6. d4 {[%clk 0:03:00.3]} 6...
cxd4 {[%clk 0:02:26.5]} 7. Nxd4 {[%clk 0:03:01.2]} 7... g6 {[%clk 0:02:26.7]} 8.
Nc3 {[%clk 0:02:58.9]} 8... Bg7 {[%clk 0:02:26.4]} 9. Be3 {[%clk 0:02:59.2]}
9... Nf6 {[%clk 0:02:26]} 10. f3 {[%clk 0:02:59.3]} 10... O-O {[%clk 0:02:24]}
11. b3 {[%clk 0:02:58.8]} 11... e6 {[%clk 0:02:12.8]} 12. O-O {[%clk 0:02:56.3]}
12... d5 {[%clk 0:02:12.9]} 13. Nxc6 {[%clk 0:02:51.3]} 13... bxc6 {[%clk
0:02:12.8]} 14. e5 {[%clk 0:02:51.4]} 14... Ne8 {[%clk 0:02:10.2]} 15. f4 {[%clk
0:02:50.4]} 15... Nc7 {[%clk 0:02:00.2]} 16. Na4 {[%clk 0:02:44.7]} 16... Rfd8
{[%clk 0:01:56.5]} 17. Qd2 {[%clk 0:02:32]} 17... dxc4 {[%clk 0:01:36.3]} 18.
Qxd7 {[%clk 0:02:28.1]} 18... Rxd7 {[%clk 0:01:37.2]} 19. bxc4 {[%clk
0:02:24.5]} 19... Rd3 {[%clk 0:01:35.8]} 20. Kf2 {[%clk 0:02:18.2]} 20... Bf8
{[%clk 0:01:35.6]} 21. Rfd1 {[%clk 0:02:13.5]} 21... Ra3 {[%clk 0:01:29.3]} 22.
Rd7 {[%clk 0:02:11.9]} 22... Rxa4 {[%clk 0:01:21.4]} 23. Rxc7 {[%clk 0:02:11.5]}
23... Rxc4 {[%clk 0:01:21.5]} 24. Rxa7 {[%clk 0:02:04.5]} 24... Rb8 {[%clk
0:01:08.1]} 25. Rc1 {[%clk 0:01:55.7]} 25... Rxc1 {[%clk 0:01:05.5]} 26. Bxc1
{[%clk 0:01:56.6]} 26... Bc5+ {[%clk 0:01:05.3]} 27. Be3 {[%clk 0:01:57.2]}
27... Bxa7 {[%clk 0:01:05.5]} 28. Bxa7 {[%clk 0:01:57.8]} 28... Ra8 {[%clk
0:01:05.9]} 29. Bc5 {[%clk 0:01:57.8]} 29... Rxa2+ {[%clk 0:01:05.8]} 30. Kf3
{[%clk 0:01:58.7]} 30... Rc2 {[%clk 0:01:05.5]} 31. Bd6 {[%clk 0:01:58.7]} 31...
c5 {[%clk 0:01:03]} 32. h4 {[%clk 0:01:59]} 32... h5 {[%clk 0:01:02.4]} 33. g3
{[%clk 0:01:59]} 33... c4 {[%clk 0:01:02.2]} 34. Bb4 {[%clk 0:01:59.1]} 34...
Rb2 {[%clk 0:01:00.9]} 35. Bc5 {[%clk 0:01:58.1]} 35... c3 {[%clk 0:00:59]} 36.
Bd4 {[%clk 0:01:58.3]} 36... Rb3 {[%clk 0:00:59.1]} 37. Ke2 {[%clk 0:01:58.2]}
37... c2 {[%clk 0:00:57.7]} 38. Kd2 {[%clk 0:01:58.6]} 38... Rd3+ {[%clk
0:00:57.2]} 0-1

[Event "Early-Titled-Tuesday-Blitz-October-24-2023"]
[Site "Chess.com"]
[Date "2023.10.24"]
[Round "5"]
[White "Felix-Rose"]
[Black "Ural_bogatyr"]
[Result "0-1"]
[WhiteElo "2307"]
[BlackElo "2551"]
[TimeControl "180+1"]
[EndTime "8:52:32 PDT"]
[Termination "Ural_bogatyr won by resignation"]

1. e4 {[%clk 0:02:59.5]} 1... e5 {[%clk 0:02:59.6]} 2. Nf3 {[%clk 0:02:58.3]}
2... Nc6 {[%clk 0:02:58.7]} 3. Bb5 {[%clk 0:02:55.1]} 3... a6 {[%clk 0:02:58.3]}
4. Ba4 {[%clk 0:02:55.3]} 4... Bc5 {[%clk 0:02:58.9]} 5. c3 {[%clk 0:02:52.2]}
5... Nge7 {[%clk 0:02:58.5]} 6. O-O {[%clk 0:02:50.5]} 6... Ba7 {[%clk
0:02:55.5]} 7. d4 {[%clk 0:02:48.2]} 7... Ng6 {[%clk 0:02:55.1]} 8. Bxc6 {[%clk
0:02:35.8]} 8... dxc6 {[%clk 0:02:54.4]} 9. dxe5 {[%clk 0:02:34.2]} 9... Qxd1
{[%clk 0:02:53.3]} 10. Rxd1 {[%clk 0:02:34.2]} 10... Bg4 {[%clk 0:02:54.2]} 11.
h3 {[%clk 0:02:08.1]} 11... Bxf3 {[%clk 0:02:52.9]} 12. gxf3 {[%clk 0:02:09]}
12... Nxe5 {[%clk 0:02:53.8]} 13. f4 {[%clk 0:02:05.8]} 13... Ng6 {[%clk
0:02:47.6]} 14. Be3 {[%clk 0:02:02.3]} 14... f5 {[%clk 0:02:35.1]} 15. exf5
{[%clk 0:01:48.5]} 15... Nh4 {[%clk 0:02:22.5]} 16. Bxa7 {[%clk 0:01:40.5]}
16... Rxa7 {[%clk 0:02:21.4]} 17. f6 {[%clk 0:01:41]} 17... gxf6 {[%clk
0:02:20.4]} 18. Nd2 {[%clk 0:01:36.7]} 18... Ra8 {[%clk 0:02:04]} 19. Ne4 {[%clk
0:01:34.7]} 19... Ke7 {[%clk 0:01:54.3]} 20. Rd3 {[%clk 0:01:22.3]} 20... Rhg8+
{[%clk 0:01:50.5]} 21. Kf1 {[%clk 0:01:19.2]} 21... Rad8 {[%clk 0:01:49.2]} 22.
Rad1 {[%clk 0:01:15]} 22... Rxd3 {[%clk 0:01:46.7]} 23. Rxd3 {[%clk 0:01:15.9]}
23... b6 {[%clk 0:01:46.8]} 24. Rd7+ {[%clk 0:01:07.3]} 24... Kxd7 {[%clk
0:01:43.4]} 25. Nxf6+ {[%clk 0:01:07.5]} 25... Ke6 {[%clk 0:01:43.3]} 26. Nxg8
{[%clk 0:01:08]} 26... Nf5 {[%clk 0:01:43.8]} 0-1